fUSD/lending_fUSD_20240516
["ID","MTS","AMOUNT","RATE_DAILY","PERIOD"]
[327136170,1715845931280,-500.0,0.00011674,2]
[327136171,1715845931290,-500.0,0.00011674,2]
[327136172,1715845931300,-500.0,0.00011674,2]
[327136173,1715845931309,-708.51,0.00011674,2]
[327136174,1715845931319,-500.0,0.00011674,2]
[327136175,1715845931328,-500.0,0.00011674,2]
[327136176,1715845931337,-598.2001412,0.00011674,2]
[327136177,1715845931346,-1009.75,0.00011674,2]
[327136178,1715845931355,-500.0,0.00011674,2]
[327136179,1715845931364,-500.0,0.00011674,2]
[327136180,1715845931374,-500.0,0.00011674,2]
[327136181,1715845931383,-258.14416,0.00011674,2]
[327136182,1715845931393,-500.0,0.00011674,2]
[327136183,1715845931404,-258.14416,0.00011674,2]
[327136184,1715845931413,-500.0,0.00011674,2]
[327136185,1715845931424,-584.83743022,0.00011674,2]
[327136186,1715845931433,-500.0,0.00011674,2]
[327136187,1715845931442,-670.37,0.00011674,2]
[327136188,1715845931451,-500.0,0.00011674,2]
[327136189,1715845931462,-500.0,0.00011674,2]
[327136190,1715845931471,-635.45,0.00011674,2]
[327136191,1715845931482,-524.64,0.00011674,2]
[327136192,1715845931490,-500.0,0.00011674,2]
[327136193,1715845931500,-500.0,0.00011674,2]
[327136194,1715845931509,-500.0,0.00011674,2]
[327136195,1715845931520,-208.35,0.00011674,2]
[327136196,1715845931529,-500.0,0.00011674,2]
[327136197,1715845931540,-500.0,0.00011674,2]
[327136198,1715845931550,-234.591349,0.00011674,2]
[327136199,1715845931560,-500.0,0.00011674,2]
[327136200,1715845931570,-500.0,0.00011674,2]
[327136201,1715845931579,-500.0,0.00011674,2]
[327136202,1715845931588,-500.0,0.00011674,2]
[327136203,1715845931597,-636.47,0.00011674,2]
[327136204,1715845931607,-500.0,0.00011674,2]
[327136205,1715845931616,-500.0,0.00011674,2]
[327136206,1715845931625,-500.0,0.00011674,2]
[327136207,1715845931634,-827.16,0.00011674,2]
[327136208,1715845931643,-500.0,0.00011674,2]
[327136209,1715845931652,-500.0,0.00011674,2]
[327136210,1715845931661,-922.24,0.00011674,2]
[327136211,1715845931670,-500.0,0.00011674,2]
[327136212,1715845931679,-500.0,0.00011674,2]
[327136213,1715845931688,-524.23,0.00011674,2]
[327136214,1715845931697,-500.0,0.00011674,2]
[327136215,1715845931706,-309.48693637,0.00011674,2]
[327136216,1715845931715,-500.0,0.00011674,2]
[327136217,1715845931725,-520.6657756,0.00011674,2]
[327136218,1715845931734,-151.0,0.00011674,2]
[327136219,1715845931743,-851.97,0.00011674,2]
[327136220,1715845931752,-563.5,0.00011674,2]
[327136221,1715845931761,-500.0,0.00011674,2]
[327136222,1715845931771,-500.0,0.00011674,2]
[327136223,1715845931780,-500.0,0.00011674,2]
[327136224,1715845931789,-500.0,0.00011674,2]
[327136225,1715845931799,-500.0,0.00011674,2]
[327136226,1715845931808,-505.75,0.00011674,2]
[327136227,1715845931817,-500.0,0.00011674,2]
[327136228,1715845931826,-500.0,0.00011674,2]
[327136229,1715845931835,-500.0,0.00011674,2]
[327136230,1715845931843,-500.0,0.00011674,2]
[327136231,1715845931852,-236.54014119,0.00011674,2]
[327136232,1715845931861,-500.0,0.00011674,2]
[327136233,1715845931871,-520.63,0.00011674,2]
[327136234,1715845931880,-500.0,0.00011674,2]
[327136235,1715845931889,-500.0,0.00011674,2]
[327136236,1715845931898,-920.08,0.00011674,2]
[327136237,1715845931907,-500.0,0.00011674,2]
[327136238,1715845931917,-500.0,0.00011674,2]
[327136239,1715845931926,-500.0,0.00011674,2]
[327136240,1715845931935,-505.99,0.00011674,2]
[327136241,1715845931944,-580.01,0.00011674,2]
[327136242,1715845931954,-500.0,0.00011674,2]
[327136243,1715845931967,-500.0,0.00011674,2]
[327136244,1715845931978,-604.46,0.00011674,2]
[327136245,1715845931987,-500.0,0.00011674,2]
[327136246,1715845931997,-1087.89,0.00011674,2]
[327136247,1715845932008,-540.99,0.00011674,2]
[327136248,1715845932020,-500.0,0.00011674,2]
[327136249,1715845932030,-500.0,0.00011674,2]
[327136250,1715845932041,-509.7438179,0.00011674,2]
[327136251,1715845932050,-500.0,0.00011674,2]
[327136252,1715845932060,-500.0,0.00011674,2]
[327136253,1715845932069,-312.51995141,0.00011674,2]
[327136254,1715845932078,-500.0,0.00011674,2]
[327136255,1715845932087,-500.0,0.00011674,2]
[327136256,1715845932098,-530.96,0.00011674,2]
[327136257,1715845932108,-500.0,0.00011674,2]
[327136258,1715845932118,-500.0,0.00011674,2]
[327136259,1715845932127,-500.0,0.00011674,2]
[327136260,1715845932136,-500.0,0.00011674,2]
[327136261,1715845932146,-500.0,0.00011674,2]
[327136262,1715845932155,-670.92,0.00011674,2]
[327136263,1715845932166,-768.88,0.00011674,2]
[327136264,1715845932175,-500.0,0.00011674,2]
[327136265,1715845932184,-931.66,0.00011674,2]
[327136266,1715845932193,-529.08,0.00011674,2]
[327136267,1715845932203,-518.43,0.00011674,2]
[327136268,1715845932212,-693.94,0.00011674,2]
[327136269,1715845932222,-500.0,0.00011674,2]
[327136270,1715845932233,-500.0,0.00011674,2]
[327136271,1715845932242,-564.31,0.00011674,2]
[327136272,1715845932252,-500.0,0.00011674,2]
[327136273,1715845932262,-500.0,0.00011674,2]
[327136274,1715845932272,-500.0,0.00011674,2]
[327136275,1715845932281,-600.08,0.00011674,2]
[327136276,1715845932291,-500.0,0.00011674,2]
[327136277,1715845932302,-500.0,0.00011674,2]
[327136278,1715845932312,-500.0,0.00011674,2]
[327136279,1715845932321,-534.72,0.00011674,2]
[327136280,1715845932332,-500.0,0.00011674,2]
[327136281,1715845932341,-500.0,0.00011674,2]
[327136282,1715845932350,-532.31,0.00011674,2]
[327136283,1715845932359,-644.67,0.00011674,2]
[327136284,1715845932369,-678.1,0.00011674,2]
[327136285,1715845932378,-702.88,0.00011674,2]
[327136286,1715845932387,-500.0,0.00011674,2]
[327136287,1715845932396,-500.0,0.00011674,2]
[327136288,1715845932406,-3061.01,0.00011674,2]
[327136289,1715845932414,-3061.01,0.00011674,2]
[327136290,1715845932425,-576.29,0.00011674,2]
[327136291,1715845932436,-579.88,0.00011674,2]
[327136292,1715845932445,-666.82,0.00011674,2]
[327136293,1715845932454,-666.82,0.00011674,2]
[327136294,1715845932463,-677.67,0.00011674,2]
[327136295,1715845932473,-368.2291001,0.00011674,2]
[327136296,1715845932483,-951.71,0.00011674,2]
[327136297,1715845932492,-951.71,0.00011674,2]
[327136298,1715845932502,-500.0,0.00011674,2]
[327136299,1715845932511,-500.0,0.00011674,2]
[327136300,1715845932521,-752.56,0.00011674,2]
[327136301,1715845932530,-500.0,0.00011674,2]
[327136302,1715845932539,-968.09,0.00011674,2]
[327136303,1715845932548,-624.98,0.00011674,2]
[327136304,1715845932559,-624.98,0.00011674,2]
[327136305,1715845932569,-999.62,0.00011674,2]
[327136306,1715845932578,-500.0,0.00011674,2]
[327136307,1715845932587,-4907.78,0.00011674,2]
[327136308,1715845932596,-500.0,0.00011674,2]
[327136309,1715845932605,-1056.29,0.00011674,2]
[327136310,1715845932615,-1056.29,0.00011674,2]
[327136311,1715845932625,-561.96,0.00011674,2]
[327136312,1715845932637,-2302.3,0.00011674,2]
[327136313,1715845932647,-500.0,0.00011674,2]
[327136314,1715845932657,-500.0,0.00011674,2]
[327136315,1715845932667,-866.14,0.00011674,2]
[327136316,1715845932676,-8730.78,0.00011674,2]
[327136317,1715845932685,-521.96,0.00011674,2]
[327136318,1715845932694,-521.96,0.00011674,2]
[327136319,1715845932703,-537.37,0.00011674,2]
[327136320,1715845932713,-572.13,0.00011674,2]
[327136321,1715845932723,-888.56,0.00011674,2]
[327136322,1715845932732,-253.35,0.00011674,2]
[327136323,1715845932742,-500.0,0.00011674,2]
[327136324,1715845932752,-671.93,0.00011674,2]
[327136325,1715845932761,-671.93,0.00011674,2]
[327136326,1715845932770,-642.94,0.00011674,2]
[327136327,1715845932780,-347.77327309,0.00011674,2]
[327136328,1715845932789,-858.1,0.00011674,2]
[327136329,1715845932798,-858.1,0.00011674,2]
[327136330,1715845932807,-1327.99,0.00011674,2]
[327136331,1715845932816,-1327.99,0.00011674,2]
[327136332,1715845932825,-900.38,0.00011674,2]
[327136333,1715845932835,-500.0,0.00011674,2]
[327136334,1715845932844,-7297.58,0.00011674,2]
[327136335,1715845932853,-1868.81,0.00011674,2]
[327136336,1715845932861,-1868.81,0.00011674,2]
[327136337,1715845932870,-638.38,0.00011674,2]
[327136338,1715845932879,-869.83,0.00011674,2]
[327136339,1715845932888,-570.11,0.00011674,2]
[327136340,1715845932897,-500.0,0.00011674,2]
[327136341,1715845932906,-500.0,0.00011674,2]
[327136342,1715845932915,-850.0,0.00011674,2]
[327136343,1715845932925,-500.0,0.00011674,2]
[327136344,1715845932935,-500.0,0.00011674,2]
[327136345,1715845932945,-500.0,0.00011674,2]
[327136346,1715845932954,-500.0,0.00011674,2]
[327136347,1715845932965,-157.051616,0.00011678,2]
[327136348,1715845932977,-213.62716783,0.00011678,2]
[327136349,1715845932988,-500.0,0.00011687,2]
[327136350,1715845932998,-500.0,0.00011687,2]
[327136351,1715845933008,-500.0,0.00011687,2]
[327136352,1715845933019,-231.55,0.00011687,2]
[327136353,1715845933028,-745.94,0.00011687,2]
[327136354,1715845933038,-1009.75,0.00011687,2]
[327136355,1715845933050,-614.08,0.00011687,2]
[327136356,1715845933060,-614.08,0.00011687,2]
[327136357,1715845933069,-614.08,0.00011687,2]
[327136358,1715845933079,-614.08,0.00011687,2]
[327136359,1715845933089,-614.2180564,0.00011687,2]
[327136360,1715845933099,-500.0,0.00011687,2]
[327136361,1715845933108,-793.58,0.00011687,2]
[327136362,1715845933117,-793.58,0.00011687,2]
[327136363,1715845933127,-793.58,0.00011687,2]
[327136364,1715845933138,-793.58,0.00011687,2]
[327136365,1715845933148,-793.68312449,0.00011687,2]
[327136366,1715845933157,-636.47,0.00011687,2]
[327136367,1715845933167,-851.97,0.00011687,2]
[327136368,1715845933176,-619.12815661,0.00011687,2]
[327136369,1715845933185,-500.0,0.00011687,2]
[327136370,1715845933195,-549.43881792,0.00011687,2]
[327136371,1715845933204,-588.2,0.00011687,2]
[327136372,1715845933214,-588.2,0.00011687,2]
[327136373,1715845933223,-588.2,0.00011687,2]
[327136374,1715845933233,-588.2,0.00011687,2]
[327136375,1715845933242,-588.35970367,0.00011687,2]
[327136376,1715845933251,-610.15295755,0.00011687,2]
[327136377,1715845933261,-511.64,0.00011687,2]
[327136378,1715845933270,-511.64,0.00011687,2]
[327136379,1715845933280,-511.64,0.00011687,2]
[327136380,1715845933289,-511.64,0.00011687,2]
[327136381,1715845933299,-511.65051725,0.00011687,2]
[327136382,1715845933308,-2738.01,0.00011687,2]
[327136383,1715845933317,-2738.01,0.00011687,2]
[327136384,1715845933326,-2738.01,0.00011687,2]
[327136385,1715845933336,-2738.01,0.00011687,2]
[327136386,1715845933345,-2738.13670532,0.00011687,2]
[327136387,1715845933355,-500.0,0.00011687,2]
[327136388,1715845933365,-500.0,0.00011687,2]
[327136389,1715845933374,-500.0,0.00011687,2]
[327136390,1715845933383,-366.68316638,0.00011687,2]
[327136391,1715845933393,-841.0,0.00011687,2]
[327136392,1715845933402,-841.0,0.00011687,2]
[327136393,1715845933412,-841.0,0.00011687,2]
[327136394,1715845933421,-841.0,0.00011687,2]
[327136395,1715845933431,-841.20191869,0.00011687,2]
[327136396,1715845933441,-999.62,0.00011687,2]
[327136397,1715845933451,-500.0,0.00011687,2]
[327136398,1715845933461,-500.0,0.00011687,2]
[327136399,1715845933471,-500.0,0.00011687,2]
[327136400,1715845933481,-325.65496111,0.00011687,2]
[327136401,1715845933490,-500.0,0.00011687,2]
[327136402,1715845933499,-303.49684088,0.00011687,2]
[327136403,1715845933509,-797.35,0.00011687,2]
[327136404,1715845933518,-797.35,0.00011687,2]
[327136405,1715845933528,-797.35,0.00011687,2]
[327136406,1715845933538,-797.35,0.00011687,2]
[327136407,1715845933548,-797.37792161,0.00011687,2]
[327136408,1715845933557,-500.0,0.00011688,2]
[327136409,1715845933566,-295.14438634,0.00011688,2]
[327136410,1715845933576,-500.0,0.00011688,2]
[327136411,1715845933585,-500.0,0.00011688,2]
[327136412,1715845933593,-500.0,0.00011688,2]
[327136413,1715845933603,-466.35623414,0.00011688,2]
[327136414,1715845933611,-156.46,0.00011688,2]
[327136415,1715845933621,-951.32,0.00011688,2]
[327136416,1715845933631,-951.32,0.00011688,2]
[327136417,1715845933640,-951.32,0.00011688,2]
[327136418,1715845933649,-951.32,0.00011688,2]
[327136419,1715845933659,-951.51083685,0.00011688,2]
[327136420,1715845933668,-512.66,0.00011688,2]
[327136421,1715845933678,-512.66,0.00011688,2]
[327136422,1715845933688,-512.66,0.00011688,2]
[327136423,1715845933697,-512.66,0.00011688,2]
[327136424,1715845933706,-512.8006911,0.00011688,2]
[327136425,1715845933716,-500.0,0.00011688,2]
[327136426,1715845933725,-500.0,0.00011688,2]
[327136427,1715845933735,-327.7380585,0.00011688,2]
[327136428,1715845933744,-306.93439979,0.00011688,2]
[327136429,1715845933754,-500.0,0.00011688,2]
[327136430,1715845933763,-500.0,0.00011688,2]
[327136431,1715845933773,-484.39152477,0.00011688,2]
[327136432,1715845933783,-708.51,0.00011688,2]
[327136433,1715845933795,-708.51,0.00011688,2]
[327136434,1715845933805,-708.51,0.00011688,2]
[327136435,1715845933814,-708.51,0.00011688,2]
[327136436,1715845933824,-708.53925254,0.00011688,2]
[327136437,1715845933833,-635.45,0.00011688,2]
[327136438,1715845933842,-524.64,0.00011688,2]
[327136439,1715845933851,-635.45,0.00011688,2]
[327136440,1715845933862,-524.64,0.00011688,2]
[327136441,1715845933872,-635.45,0.00011688,2]
[327136442,1715845933880,-524.64,0.00011688,2]
[327136443,1715845933891,-635.45,0.00011688,2]
[327136444,1715845933900,-524.64,0.00011688,2]
[327136445,1715845933909,-635.46874343,0.00011688,2]
[327136446,1715845933917,-524.68754522,0.00011688,2]
[327136447,1715845933927,-500.0,0.00011688,2]
[327136448,1715845933936,-500.0,0.00011688,2]
[327136449,1715845933944,-500.0,0.00011688,2]
[327136450,1715845933954,-545.12957426,0.00011688,2]
[327136451,1715845933968,-426.24,0.00011688,2]
[327136452,1715845933984,-500.0,0.00011688,2]
[327136453,1715845934142,-500.0,0.00011688,2]
[327136454,1715845934167,-500.0,0.00011688,2]
[327136455,1715845934177,-179.71622537,0.00011688,2]
[327136456,1715845934186,-827.16,0.00011688,2]
[327136457,1715845934196,-827.16,0.00011688,2]
[327136458,1715845934206,-827.16,0.00011688,2]
[327136459,1715845934215,-827.16,0.00011688,2]
[327136460,1715845934224,-827.39586105,0.00011688,2]
[327136461,1715845934233,-500.0,0.00011688,2]
[327136462,1715845934243,-599.12203045,0.00011688,2]
[327136463,1715845934252,-151.0,0.00011688,2]
[327136464,1715845934262,-563.5,0.00011688,2]
[327136465,1715845934272,-563.5,0.00011688,2]
[327136466,1715845934281,-563.5,0.00011688,2]
[327136467,1715845934291,-563.5,0.00011688,2]
[327136468,1715845934301,-563.67315029,0.00011688,2]
[327136469,1715845934311,-500.0,0.00011688,2]
[327136470,1715845934321,-500.0,0.00011688,2]
[327136471,1715845934331,-526.42113868,0.00011688,2]
[327136472,1715845934340,-505.75,0.00011688,2]
[327136473,1715845934350,-505.75,0.00011688,2]
[327136474,1715845934360,-505.75,0.00011688,2]
[327136475,1715845934370,-505.75,0.00011688,2]
[327136476,1715845934379,-505.97846413,0.00011688,2]
[327136477,1715845934389,-520.63,0.00011688,2]
[327136478,1715845934399,-520.63,0.00011688,2]
[327136479,1715845934410,-520.63,0.00011688,2]
[327136480,1715845934421,-520.63,0.00011688,2]
[327136481,1715845934430,-520.81591409,0.00011688,2]
[327136482,1715845934440,-920.08,0.00011688,2]
[327136483,1715845934451,-920.08,0.00011688,2]
[327136484,1715845934462,-920.08,0.00011688,2]
[327136485,1715845934473,-920.08,0.00011688,2]
[327136486,1715845934482,-920.22242272,0.00011688,2]
[327136487,1715845934491,-505.99,0.00011688,2]
[327136488,1715845934501,-505.99,0.00011688,2]
[327136489,1715845934510,-505.99,0.00011688,2]
[327136490,1715845934519,-505.99,0.00011688,2]
[327136491,1715845934528,-506.02654688,0.00011688,2]
[327136492,1715845934537,-604.46,0.00011688,2]
[327136493,1715845934547,-604.46,0.00011688,2]
[327136494,1715845934559,-604.46,0.00011688,2]
[327136495,1715845934568,-604.46,0.00011688,2]
[327136496,1715845934578,-1087.89,0.00011688,2]
[327136497,1715845934587,-604.52464725,0.00011688,2]
[327136498,1715845934596,-1087.89,0.00011688,2]
[327136499,1715845934606,-1087.89,0.00011688,2]
[327136500,1715845934615,-1087.89,0.00011688,2]
[327136501,1715845934625,-1087.89835462,0.00011688,2]
[327136502,1715845934635,-540.99,0.00011688,2]
[327136503,1715845934644,-540.99,0.00011688,2]
[327136504,1715845934653,-540.99,0.00011688,2]
[327136505,1715845934663,-540.99,0.00011688,2]
[327136506,1715845934672,-541.09478031,0.00011688,2]
[327136507,1715845934682,-500.0,0.00011688,2]
[327136508,1715845934691,-238.61078799,0.00011688,2]
[327136509,1715845934700,-500.0,0.00011688,2]
[327136510,1715845934709,-500.0,0.00011688,2]
[327136511,1715845934718,-516.1786088,0.00011688,2]
[327136512,1715845934727,-530.96,0.00011688,2]
[327136513,1715845934737,-530.96,0.00011688,2]
[327136514,1715845934745,-530.96,0.00011688,2]
[327136515,1715845934754,-530.96,0.00011688,2]
[327136516,1715845934763,-530.96846623,0.00011688,2]
[327136517,1715845934773,-670.92,0.00011688,2]
[327136518,1715845934783,-670.92,0.00011688,2]
[327136519,1715845934792,-670.92,0.00011688,2]
[327136520,1715845934802,-670.92,0.00011688,2]
[327136521,1715845934812,-670.92517107,0.00011688,2]
[327136522,1715845934822,-768.88,0.00011688,2]
[327136523,1715845934831,-768.88,0.00011688,2]
[327136524,1715845934840,-768.88,0.00011688,2]
[327136525,1715845934850,-768.88,0.00011688,2]
[327136526,1715845934858,-769.03465589,0.00011688,2]
[327136527,1715845934868,-931.66,0.00011688,2]
[327136529,1715845934878,-931.66,0.00011688,2]
[327136530,1715845934887,-931.66,0.00011688,2]
[327136531,1715845934896,-931.66,0.00011688,2]
[327136532,1715845934906,-931.72344236,0.00011688,2]
[327136533,1715845934915,-529.08,0.00011688,2]
[327136534,1715845934924,-529.08,0.00011688,2]
[327136535,1715845934934,-529.08,0.00011688,2]
[327136536,1715845934943,-529.08,0.00011688,2]
[327136537,1715845934952,-529.10740613,0.00011688,2]
[327136538,1715845934962,-518.43,0.00011688,2]
[327136539,1715845934976,-518.43,0.00011688,2]
[327136540,1715845934986,-518.43,0.00011688,2]
[327136541,1715845934995,-518.43,0.00011688,2]
[327136542,1715845935004,-518.57172861,0.00011688,2]
[327136543,1715845935015,-693.94,0.00011688,2]
[327136544,1715845935025,-693.94,0.00011688,2]
[327136545,1715845935036,-693.94,0.00011688,2]
[327136546,1715845935049,-693.94,0.00011688,2]
[327136547,1715845935059,-693.95949589,0.00011688,2]
[327136548,1715845935069,-564.31,0.00011688,2]
[327136549,1715845935079,-564.31,0.00011688,2]
[327136550,1715845935090,-564.31,0.00011688,2]
[327136551,1715845935100,-564.31,0.00011688,2]
[327136552,1715845935109,-564.51445736,0.00011688,2]
[327136553,1715845935122,-500.0,0.00011688,2]
[327136554,1715845935132,-600.08,0.00011688,2]
[327136555,1715845935141,-600.08,0.00011688,2]
[327136556,1715845935150,-600.08,0.00011688,2]
[327136557,1715845935160,-600.08,0.00011688,2]
[327136558,1715845935169,-600.31691742,0.00011688,2]
[327136559,1715845935180,-500.0,0.00011688,2]
[327136560,1715845935191,-500.0,0.00011688,2]
[327136561,1715845935203,-532.31,0.00011688,2]
[327136562,1715845935214,-532.31,0.00011688,2]
[327136563,1715845935224,-532.31,0.00011688,2]
[327136564,1715845935234,-532.31,0.00011688,2]
[327136565,1715845935243,-532.38483487,0.00011688,2]
[327136566,1715845935252,-644.67,0.00011688,2]
[327136567,1715845935262,-644.67,0.00011688,2]
[327136568,1715845935271,-644.67,0.00011688,2]
[327136569,1715845935280,-644.67,0.00011688,2]
[327136570,1715845935291,-644.90526308,0.00011688,2]
[327136571,1715845935300,-702.88,0.00011688,2]
[327136572,1715845935311,-702.88,0.00011688,2]
[327136573,1715845935320,-702.88,0.00011688,2]
[327136574,1715845935330,-702.88,0.00011688,2]
[327136575,1715845935340,-703.09759157,0.00011688,2]
[327136576,1715845935349,-3061.01,0.00011688,2]
[327136577,1715845935359,-666.82,0.00011688,2]
[327136578,1715845935369,-951.71,0.00011688,2]
[327136579,1715845935378,-500.0,0.00011688,2]
[327136580,1715845935388,-500.0,0.00011688,2]
[327136581,1715845935398,-500.0,0.00011688,2]
[327136582,1715845935407,-500.0,0.00011688,2]
[327136583,1715845935417,-354.98666287,0.00011688,2]
[327136584,1715845935427,-624.98,0.00011688,2]
[327136585,1715845935436,-500.0,0.00011688,2]
[327136586,1715845935446,-1056.29,0.00011688,2]
[327136587,1715845935455,-561.96,0.00011688,2]
[327136588,1715845935465,-561.96,0.00011688,2]
[327136589,1715845935476,-561.96,0.00011688,2]
[327136590,1715845935485,-561.96,0.00011688,2]
[327136591,1715845935494,-562.0301762,0.00011688,2]
[327136592,1715845935503,-500.0,0.00011688,2]
[327136593,1715845935512,-866.14,0.00011688,2]
[327136594,1715845935521,-866.14,0.00011688,2]
[327136595,1715845935530,-866.14,0.00011688,2]
[327136596,1715845935539,-866.14,0.00011688,2]
[327136597,1715845935549,-866.36056401,0.00011688,2]
[327136598,1715845935561,-521.96,0.00011688,2]
[327136599,1715845935571,-537.37,0.00011688,2]
[327136600,1715845935581,-537.37,0.00011688,2]
[327136601,1715845935590,-572.13,0.00011688,2]
[327136602,1715845935602,-537.37,0.00011688,2]
[327136603,1715845935616,-572.13,0.00011688,2]
[327136604,1715845935634,-537.37,0.00011688,2]
[327136605,1715845935650,-572.13,0.00011688,2]
[327136606,1715845935665,-537.45442379,0.00011688,2]
[327136607,1715845935680,-572.13,0.00011688,2]
[327136608,1715845935696,-572.24064022,0.00011688,2]
[327136609,1715845935714,-888.56,0.00011688,2]
[327136610,1715845935730,-888.56,0.00011688,2]
[327136611,1715845935744,-888.56,0.00011688,2]
[327136612,1715845935760,-888.56,0.00011688,2]
[327136613,1715845935774,-888.73724124,0.00011688,2]
[327136614,1715845935786,-500.0,0.00011688,2]
[327136615,1715845935800,-579.30946753,0.00011688,2]
[327136616,1715845935817,-671.93,0.00011688,2]
[327136617,1715845935835,-858.1,0.00011688,2]
[327136618,1715845935855,-1327.99,0.00011688,2]
[327136619,1715845935869,-500.0,0.00011688,2]
[327136620,1715845935881,-500.0,0.00011688,2]
[327136621,1715845935897,-482.83769606,0.00011688,2]
[327136622,1715845935911,-1868.81,0.00011688,2]
[327136623,1715845935925,-869.83,0.00011688,2]
[327136624,1715845935942,-869.83,0.00011688,2]
[327136625,1715845935955,-869.83,0.00011688,2]
[327136626,1715845935975,-869.83,0.00011688,2]
[327136627,1715845935988,-869.83995297,0.00011688,2]
[327136628,1715845936004,-500.0,0.00011688,2]
[327136629,1715845936019,-578.88,0.00011688,2]
[327136630,1715845936032,-285.97555,0.00011688,2]
[327136631,1715845936048,-500.0,0.00011688,2]
[327136632,1715845936061,-399.11710888,0.00011688,2]
[327136633,1715845936074,-500.0,0.00011688,2]
[327136634,1715845936088,-500.0,0.00011688,2]
[327136635,1715845936101,-546.23839796,0.00011688,2]
[327136636,1715845936114,-2000.0,0.00011689,2]
[327136637,1715845936126,-500.0,0.00011689,2]
[327136638,1715845936140,-560.97349651,0.00011689,2]
[327136639,1715845936154,-500.0,0.00011689,2]
[327136640,1715845936167,-500.0,0.00011689,2]
[327136641,1715845936179,-500.0,0.00011689,2]
[327136642,1715845936192,-500.0,0.00011689,2]
[327136643,1715845936205,-500.0,0.00011689,2]
[327136644,1715845936217,-500.0,0.00011689,2]
[327136645,1715845936231,-500.0,0.00011689,2]
[327136646,1715845936243,-500.0,0.00011689,2]
[327136647,1715845936256,-500.0,0.00011689,2]
[327136648,1715845936269,-500.0,0.00011689,2]
[327136649,1715845936282,-500.0,0.00011689,2]
[327136650,1715845936295,-500.0,0.00011689,2]
[327136651,1715845936308,-797.17,0.00011689,2]
[327136652,1715845936320,-500.0,0.00011689,2]
[327136653,1715845936333,-523.0,0.00011689,2]
[327136654,1715845936346,-500.0,0.00011689,2]
[327136655,1715845936359,-500.0,0.00011689,2]
[327136656,1715845936372,-500.0,0.00011689,2]
[327136657,1715845936384,-500.0,0.00011689,2]
[327136658,1715845936397,-500.0,0.00011689,2]
[327136659,1715845936409,-500.0,0.00011689,2]
[327136660,1715845936422,-500.0,0.00011689,2]
[327136661,1715845936436,-581.86597642,0.00011689,2]
[327136662,1715845936449,-500.0,0.00011689,2]
[327136663,1715845936461,-500.0,0.00011689,2]
[327136664,1715845936475,-501.53925001,0.00011689,2]
[327136665,1715845936486,-500.0,0.00011689,2]
[327136666,1715845936499,-500.0,0.00011689,2]
[327136667,1715845936512,-500.0,0.00011689,2]
[327136668,1715845936524,-500.0,0.00011689,2]
[327136669,1715845936538,-500.0,0.00011689,2]
[327136670,1715845936550,-500.0,0.00011689,2]